Cogmind - Beta 13 @@@ ROGUE MODE // 2024.04.05 @ 17:58:05 Player: ScarletApple Result: Destroyed by Y-45 Defender with Heavy Assault Rifle Performance ------------- Evolutions (2) 1000 Regions Visited (4) 800 Robots Destroyed (17) 85 Value Destroyed (559) 559 Prototype IDs (1) 20 Alien Tech Used (0) 0 Bonus (0) 0 TOTAL SCORE: 2464 Bonus ------- None Cogmind --------- Core Integrity 0/550 Matter 293/300 Energy 100/100 System Corruption 0% Temperature Cool (27) Movement Core (1450) Ox28 Location -8/Materials Parts ------- > --- POWER (2) -------- (None) > --- PROPULSION (3) --- (None) > --- UTILITY (4) ------ Small Storage Unit Huge Storage Unit > --- WEAPON (2) ------- (None) > --- INVENTORY (25) --- Improved Ion Engine Nuclear Core Visual Processing Unit Particle Charger Peak State ------------ > --- POWER ------------ Nuclear Core > --- PROPULSION ------- Light Treads Armored Treads Cesium-ion Thruster > --- UTILITY ---------- Heat Sink Terrain Scan Processor Light Armor Plating Hacking Suite > --- WEAPON ----------- Improved EM Shotgun Beam Cannon > --- INVENTORY -------- Improved Ion Engine Light Nuclear Core Small Storage Unit Visual Processing Unit Particle Charger [Rating: 22] Favorites ----------- Power Light Ion Engine Engine Light Ion Engine Power Core Nuclear Core Propulsion Hover Unit Treads Armored Treads Wheel Wheel Hover Unit Hover Unit Flight Unit Cesium-ion Thruster Utility Small Storage Unit Device Heat Sink Storage Small Storage Unit Processor Terrain Scan Processor Hackware Hacking Suite Protection Light Armor Plating Weapon EM Pulse Gun Energy Gun EM Pulse Gun Energy Cannon Beam Cannon Ballistic Gun Light Assault Rifle Build | -11 -10 -9 -9 -8 ------- Run | Yrd Mat Mat Min Mat Slots Evolved 4 | . . 2 . 2 Power 1 | . . . . 1 Propulsion 1 | . . . . 1 Utility 2 | . . 2 . . Weapon . | . . . . . Parts Attached 33 | 6 1 6 3 17 Power 7 | 1 . 1 1 4 Engine 4 | 1 . 1 1 1 Core 3 | . . . . 3 Reactor . | . . . . . Propulsion 8 | 2 . 2 . 4 Treads 2 | . . . . 2 Leg . | . . . . . Wheel 2 | 2 . . . . Hover 2 | . . 2 . . Flight 2 | . . . . 2 Utility 10 | 1 1 2 1 5 Device 2 | . . 1 . 1 Storage 3 | 1 . . . 2 Processor 1 | . . . 1 . Hackware 1 | . 1 . . . Protection 3 | . . 1 . 2 Artifact . | . . . . . Weapon 8 | 2 . 1 1 4 Energy Gun 4 | 1 . 1 1 1 Energy Cannon 2 | . . . . 2 Ballistic Gun 2 | 1 . . . 1 Ballistic Cannon . | . . . . . Launcher . | . . . . . Special Weapon . | . . . . . Impact Weapon . | . . . . . Slashing Weapon . | . . . . . Piercing Weapon . | . . . . . Special Melee Weapon . | . . . . . Unidentified Prototypes 1 | . . 1 . . Parts Lost 20 | . . 1 2 17 Power 5 | . . . 1 4 Propulsion 4 | . . . . 4 Utility 5 | . . . . 5 Weapon 6 | . . 1 1 4 Highest Loss Streak 11 | . . 1 2 11 To Critical Strikes . | . . . . . Average Slot Usage (%) 84 | . 98 92 81 76 Engine 9 | . 14 11 8 8 Core 2 | . . . . 5 Treads 2 | . . . . 5 Wheel 9 | . 28 19 . . Hover 7 | . . 2 22 8 Device 7 | . . 8 11 8 Storage 10 | . 14 11 11 8 Processor 4 | . . . 5 8 Hackware 10 | . 12 11 11 9 Protection 1 | . . 6 . . Energy Gun 9 | . 14 11 13 6 Energy Cannon 2 | . . . . 4 Ballistic Gun 4 | . 14 9 . . Naked Turns . | . . . . . Heaviest Build 93 | 11 11 18 18 93 Greatest Support 40 | 26 26 26 12 40 Greatest Overweight (x) 30 | 2 . 1 1 30 Average Overweight (x) . | . . . . . Largest Inventory Capacity 25 | 8 8 8 8 25 Average Capacity 8 | 7 8 8 8 8 Most Carried 8 | . 5 8 8 8 Average Carried 5 | . 2 6 6 6 Final Capacity 25 | 8 8 8 8 25 Final Carried 8 | . 5 8 6 4 Class Distribution -------------------- 52% | Mutant 47% | Scavenger-Mutant Dominant Class ---------------- Mutant | -10/Materials Mutant | -9/Materials Scavenger-Mutant | -9/Mines Scavenger-Mutant | -8/Materials Resources | -11 -10 -9 -9 -8 ----------- Run | Yrd Mat Mat Min Mat Matter Collected 467 | 206 74 40 53 94 Remotely . | . . . . . Salvage Created 677 | . 139 281 40 217 Parts 42 | . 9 19 5 9 Haulers Intercepted . | . . . . . Recyclers Shooed 1 | . 1 . . . Parts Field Recycled . | . . . . . Retrieved Matter . | . . . . . Parts Self-Destructed . | . . . . . Prevented . | . . . . . Kills | -11 -10 -9 -9 -8 ------- Run | Yrd Mat Mat Min Mat Combat Hostiles Destroyed 13 | . 2 5 2 4 Guns 7 | . 1 3 2 1 Cannons 3 | . . . . 3 AOE 3 | . 1 2 . . Classes Destroyed 8 | . 4 2 1 1 Worker 1 | . 1 . . . Builder 1 | . 1 . . . Operator 1 | . 1 . . . Watcher 1 | . . 1 . . Swarmer 2 | . . . 2 . Grunt 5 | . 2 1 . 2 Duelist 1 | . . . . 1 Sentry 5 | . . 4 . 1 Best Kill Streak 4 | . 4 3 2 2 Combat Bots Only 3 | . 2 3 2 2 Max Kills in Single Turn 3 | . 3 2 1 1 Gunslinging . | . . . . . Exploded 2 | . 1 2 . . Melee . | . . . . . Uniques/NPCs Destroyed . | . . . . . Combat | -11 -10 -9 -9 -8 -------- Run | Yrd Mat Mat Min Mat Hostile Shots Fired 206 | . 12 18 27 149 Missed 68 | . 4 8 7 49 Damage Taken 2338 | . 124 147 152 1915 Core 683 | . 24 66 30 563 Absorbed by Shields . | . . . . . Core Remaining (%) 88 | 100 90 . 76 . Volleys Fired 65 | . 14 13 11 27 Largest 2 | . 2 2 2 2 Hottest 105 | . 60 85 85 105 Shots Fired 99 | . 28 26 13 32 Gun 83 | . 28 26 13 16 Cannon 16 | . . . . 16 Launcher . | . . . . . Special . | . . . . . Kinetic 30 | . 14 12 . 4 Thermal 22 | . . . . 22 Explosive . | . . . . . Electromagnetic 47 | . 14 14 13 6 Robot Hit Streak 6 | . 5 6 3 5 Robot Miss Streak 5 | . 2 1 4 5 Penetration Max . | . . . . . Secondary Targets . | . . . . . Shots Hit Robots 68 | . 19 18 6 25 Core Hits 34 | . 11 9 2 12 Critical Kills . | . . . . . Critical Parts Destroyed . | . . . . . Critical Strikes . | . . . . . Melee Attacks . | . . . . . Impact . | . . . . . Slashing . | . . . . . Piercing . | . . . . . Sneak Attacks . | . . . . . Combat Hostiles . | . . . . . Follow-up Attacks . | . . . . . Damage Inflicted 1149 | . 313 327 93 416 Guns 722 | . 223 197 93 209 Cannons 196 | . . . . 196 Explosions 211 | . 81 130 . . Melee . | . . . . . Ramming 20 | . 9 . . 11 Kinetic 173 | . 72 44 . 57 Thermal 482 | . 81 130 . 271 Explosive . | . . . . . Electromagnetic 474 | . 151 153 93 77 Impact . | . . . . . Slashing . | . . . . . Piercing . | . . . . . Highest Corruption 1 | . 1 . . . Average Corruption 1 | . 1 . . . Corruption Purged . | . . . . . Corruption Blocked . | . . . . . Overload Shots . | . . . . . Overflow Damage . | . . . . . Projectiles . | . . . . . Explosions . | . . . . . Melee . | . . . . . Knockbacks . | . . . . . Impact . | . . . . . Kinetic . | . . . . . Secondary . | . . . . . Self-Inflicted Damage 6 | . 4 . . 2 Shots . | . . . . . Rammed 4 | . 1 . . 3 Targets Rammed 4 | . 1 . . 3 Kicked . | . . . . . Crushed . | . . . . . Highest Temperature 159 | . 159 14 . 133 Average Temperature 41 | . 60 9 . 34 Received Heat Transfer 951 | . 105 54 . 792 Siege Activations . | . . . . . Robots Corrupted . | . . . . . Combat Hostiles . | . . . . . Parts Fried . | . . . . . Impact Corruptions . | . . . . . Robots Melted . | . . . . . Combat Hostiles . | . . . . . Parts Melted 1 | . . . . 1 Heat Transferred 692 | . 50 50 . 592 Parts Sabotaged . | . . . . . Parts Stolen . | . . . . . Parts Stripped . | . . . . . Power Chain Reactions 3 | . 1 2 . . Alert | -11 -10 -9 -9 -8 ------- Run | Yrd Mat Mat Min Mat Peak Influence 263 | . 140 263 136 102 Initial 101 | . . 59 101 52 Average 81 | . 85 168 125 43 Maximum Alert Level 1 | . . 1 . . Low Security (%) 92 | 100 100 62 100 100 Level 1 7 | . . 37 . . Level 2 . | . . . . . Level 3 . | . . . . . Level 4 . | . . . . . Level 5 . | . . . . . High Security . | . . . . . Max Security . | . . . . . Squads Dispatched 4 | . . 1 . 3 Investigation 1 | . . 1 . . Extermination . | . . . . . Reinforcement 1 | . . . . 1 Assault . | . . . . . Garrison 2 | . . . . 2 Intercept . | . . . . . Searches Triggered . | . . . . . Construction Impeded . | . . . . . Haulers Reinforced . | . . . . . Active Scanning Responses . | . . . . . Cargo Convoy Interrupts . | . . . . . Stealth | -11 -10 -9 -9 -8 --------- Run | Yrd Mat Mat Min Mat Distress Signals 3 | . 1 1 . 1 Communications Jammed . | . . . . . Distress Signals . | . . . . . Times Spotted 33 | . 6 8 3 16 Peak Tracking Total 8 | . 4 4 3 8 Tactical Retreats 3 | . . 1 1 1 Traps | -11 -10 -9 -9 -8 ------- Run | Yrd Mat Mat Min Mat Traps Triggered 1 | . . 1 . . Indirectly . | . . . . . Trap Hack Attempts . | . . . . . Triggered . | . . . . . Disarmed . | . . . . . Reprogrammed . | . . . . . Reused . | . . . . . Traps Extracted . | . . . . . Installed . | . . . . . Triggered . | . . . . . Machines | -11 -10 -9 -9 -8 ---------- Run | Yrd Mat Mat Min Mat Machines Disabled 2 | . 1 1 . . Max in Single Turn 1 | . 1 1 . . Machines Repaired . | . . . . . Machines Dismantled . | . . . . . Machines Sabotaged . | . . . . . Overloaded Fab Kills . | . . . . . Hacking | -11 -10 -9 -9 -8 --------- Run | Yrd Mat Mat Min Mat Machines Accessed 1 | . . 1 . . Terminals . | . . . . . Fabricators . | . . . . . Repair Stations . | . . . . . Recycling Units 1 | . . 1 . . Scanalyzers . | . . . . . Garrison Access . | . . . . . Total Hacks 4 | . . 4 . . Successful 4 | . . 4 . . Failed . | . . . . . Catastrophic . | . . . . . Database Lockouts . | . . . . . Manual . | . . . . . Terminals . | . . . . . Fabricators . | . . . . . Repair Stations . | . . . . . Recycling Units 4 | . . 4 . . Scanalyzers . | . . . . . Garrison Access . | . . . . . Terminal Hacks . | . . . . . Fabricator Hacks . | . . . . . Repair Station Hacks . | . . . . . Recycling Unit Hacks 4 | . . 4 . . Process 1 | . . 1 . . Report Inventory 2 | . . 2 . . Retrieve Matter 1 | . . 1 . . Scanalyzer . | . . . . . Garrison Access Hacks . | . . . . . Unauthorized Hacks . | . . . . . Terminals . | . . . . . Fabricators . | . . . . . Repair Stations . | . . . . . Recycling Units . | . . . . . Scanalyzers . | . . . . . Garrison Access . | . . . . . Data Cores Recovered 1 | . 1 . . . Used . | . . . . . Hacking Detections . | . . . . . Full Trace Events . | . . . . . Feedback Events . | . . . . . Feedback Blocked . | . . . . . Robot Schematics Acquired . | . . . . . Robots Built . | . . . . . Authchips . | . . . . . Time . | . . . . . Total Robot Build Rating . | . . . . . Part Schematics Acquired . | . . . . . Parts Built . | . . . . . Authchips . | . . . . . Time . | . . . . . Total Part Build Rating . | . . . . . Parts Repaired . | . . . . . Time . | . . . . . Parts Recycled . | . . . . . Recycled Matter 16 | . . 16 . . Retrieved Matter 16 | . . 16 . . Retrieved Components . | . . . . . Parts Scanalyzed . | . . . . . Part Schematics Acquired . | . . . . . Parts Damaged . | . . . . . Bothacking | -11 -10 -9 -9 -8 ------------ Run | Yrd Mat Mat Min Mat Used RIF Installer . | . . . . . Robots Hacked . | . . . . . Non-combat . | . . . . . Combat . | . . . . . Robot Hacks Applied . | . . . . . Relay Couplers Released . | . . . . . Fabnet Peak Effective % . | . . . . . Robots Rewired . | . . . . . Allies Hacked . | . . . . . Hacks Repelled . | . . . . . Allies | -11 -10 -9 -9 -8 -------- Run | Yrd Mat Mat Min Mat Total Allies . | . . . . . Largest Group . | . . . . . Highest-Rated Group . | . . . . . Highest-Rated Ally . | . . . . . Total Orders . | . . . . . Ally Attacks . | . . . . . Total Damage . | . . . . . Kills . | . . . . . Allies Corrupted . | . . . . . Allies Melted . | . . . . . Intel | -11 -10 -9 -9 -8 ------- Run | Yrd Mat Mat Min Mat Robot Analysis Total . | . . . . . Derelict Logs Recovered . | . . . . . Drone Launches . | . . . . . Drone Recoveries . | . . . . . Exploration | -11 -10 -9 -9 -8 ------------- Run | Yrd Mat Mat Min Mat Turns Passed 1426 | 68 241 278 160 679 Spaces Moved 1087 | 65 212 239 181 390 Core 13 | 12 . . . 1 Treads 109 | . . . . 109 Legs . | . . . . . Wheels 481 | 53 212 216 . . Hover 450 | . . 23 181 246 Flight 34 | . . . . 34 Fastest Speed 50 | 50 90 90 56 116 Average Speed 106 | 85 90 92 62 147 Slowest Speed 1550 | 150 90 116 116 1550 Overloaded Moves . | . . . . . Propulsion Burnouts . | . . . . . Robots Hopped . | . . . . . Cave-ins Triggered . | . . . . . Exploration Rate (%) 26 | 3 30 18 53 27 Regions Visited 4 Branch Regions 1 Pre-discovered Areas . | . . . . . Known Exits Taken . | . . . . . Unknown Exits Taken 4 | 1 1 1 1 . Scrap Searched 1 | . . . 1 . Spaces Dug . | . . . . . Terrain Destroyed 6 | . . 6 . . Melee . | . . . . . Projectile . | . . . . . AOE 6 | . . 6 . . Terrain Rammed . | . . . . . Walls Destroyed . | . . . . . Machines Disabled . | . . . . . Actions | -11 -10 -9 -9 -8 --------- Run | Yrd Mat Mat Min Mat Total 1253 | 74 236 270 213 460 Wait 42 | 4 4 4 19 11 Move 1083 | 64 211 238 180 390 Hop . | . . . . . Pick Up 17 | . 5 4 . 8 Fast Attach 14 | 6 1 4 . 3 Attach 14 | . . . 2 12 Detach 3 | . . 1 . 2 Swap 6 | . . 3 1 2 Drop 5 | . . 3 . 2 Fire 65 | . 14 13 11 27 Melee . | . . . . . Ram 3 | . 1 . . 2 Kick . | . . . . . Crush 1 | . . . . 1 Escape Stasis . | . . . . . Rewire . | . . . . . Trap . | . . . . . Miscellaneous . | . . . . . Route ------- -11/Scrapyard -10/Materials -9/Materials -9/Mines -8/Materials (discovered 1 exit: [*Fac]) History --------- Turn | Location | Event 23 | -11/Scrapyard | Discovered new exit (range 16) 69 | -11/Scrapyard | Entered Materials 306 | -10/Materials | Discovered new exit (range 4) 310 | -10/Materials | Build established: Mutant 310 | -10/Materials | Entered another Materials area 310 | -9/Materials | Evolved 2 slots: Utility x2 533 | -9/Materials | Discovered new exit (range 8) 588 | -9/Materials | Entered Mines 741 | -9/Mines | Discovered new exit (range 9) 748 | -9/Mines | Entered Materials 748 | -8/Materials | Evolved 2 slots: Power x1, Propulsion x1 970 | -8/Materials | Build established: Scavenger-Mutant 1101 | -8/Materials | Garrison activated, responded to threat 1105 | -8/Materials | Lost 6 parts (2p2n1u1w) 1387 | -8/Materials | Discovered new exit (range 15) 1409 | -8/Materials | Garrison activated, responded to threat 1411 | -8/Materials | Core integrity fell below 50% 1427 | -8/Materials | Destroyed by Y-45 Defender with Heavy Assault Rifle Last Messages --------------- 01414_ Hvy. Assault Rifle destroyed. 01414_ Penetrated by Slug. 01414_ G-47 Trooper Particle Gun blasted off. 01414_ G-47 Trooper destroyed. 01414_ Lgt. Nuclear Core destroyed. 01414_ Critical hit (Burn: +37). 01416_ R-06 Scavenger collects Imp. Heat Sink. 01416_ G-47 Trooper destroyed. 01417_ K-01 Serf collects debris. 01419_ R-06 Scavenger collects Aluminum Leg. 01421_ K-01 Serf collects debris. 01421_ Critical hit (Burn: +37). 01422_ Knocked back. 01425_ K-01 Serf collects debris. 01427_ Penetrated by Slug. 01427_ Hacking Suite destroyed. 01427_ Critical hit (Blast). 01427_ R-06 Scavenger suffers critical hit (Burn). 01427_ R-06 Scavenger destroyed. 01427_ U-05 Engineer builds a Wall. Map ----- +----------------------------------------------------+ | ???????????????????"" """ "?????????# #?? | | ???????????????? """ """ #?????????# % #?? | | ???????????????? """ """ #?????????# ### | | ????????????????? ##############+##### | | ????????????????? %% | | ???????????????# """ """ | | ???????????????# """ """ | | ???????????????# """ """ ################/### | | ???????????????# !#?????????????? ### | | ???????????????# #?????????????? #?? | | ???????????????# """ !! Y#?????????????? #?? | | ???????????##### """ !!!w +??????????????"" #?? | | ?????????? """ !!!=!#?????????????"""" #?? | | ?????????? =%!#?????????????"""" #?? | | ?????????? ![*#?????????????"""" #?? | | ???????????############## #???????????????? #?? | | ???????????????# # #????????????????? #?? | | ???????????????# """ #r #????????????????? #?? | | ???????????????# "R # #????????????????????? | | ???????????????# """ # % #????????????????????? | | ???????????????# + #????????????????????? | | ???????????????# """ #[%u##???????????????????? | | ???????????????# """ ;= g##???????????????????? | | ???????????????# """ #kg%#????????????????????? | | ???????????????? # % ##???????????????????? | | ???????????????##########@ T#???????????????????? | | ????????????????????????#u ##???????????????????? | | ???????????????????????#; % #????????????????????? | | ???????????????????????## #????????????????????? | | ????????????????????????# %#????????????????????? | | ????????????????????????#% #????????????????????? | | ????????????????????????#*% #????????????????????? | | ????????????????????????# ! #????????????????????? | | ????????????????????????# Yg#????????????????????? | | ????????????????????????# #????????????????????? | | ????????????????????????# ????????????????????? | | ???????????????????????? T ???????????????????? | | ???????????????????????? H" #??????????????????? | | ???????????????????????? ??????????????????? | | ????????????????????????# ?????????????????? | | ?????????????????????????# ####????????????????? | | ?????????????????????????? #???????????????????? | | ?????????????????????????? ????????????????????? | | ?????????????????????????? ????????????????????? | | ?????????????????????????? ????????????????????? | | ?????????????????????????? < ????????????????????? | | ?????????????????????????? ?????????????????????? | | ?????????????????????????????????????????????????? | | ?????????????????????????????????????????????????? | | ?????????????????????????????????????????????????? | +----------------------------------------------------+ Best States ------------- Heat Dissipation 41 Energy Generation 23 Energy Capacity 300 Matter Stores 300 Matter Capacity 300 Sight Range 16 Terrain Scan Density 85 Armor Coverage 150 Evasion (%) 53 Recoil Reduction 2 Offensive Hacking 10 Item Schematics ----------------- None Robot Schematics ------------------ None Fabricated ------------ Nothing Alien Tech Used ----------------- None Achievements -------------- Troublemaker Challenges ------------ None Game ------ Seed BeamActiveDoublenader Manual? 0 Play Time 00:30:22 Cumulative 4.1 hours Start 2024.04.05 @ 17:26:49 End 2024.04.05 @ 17:58:05 Sessions 1 Manual Loads 0 Difficulty Rogue Special Mode None Game No. 5 Rogue 5 Adventurer 0 Explorer 0 Win Type - Total 0 Types 0/0/0/0/0/0/0/0/0 Lore% 4 Gallery% 6 Achievement% 7 Wizard Run 0 Options --------- Layout 1 ASCII 0 Keyboard 0 Movement Arrows Keybinds 0 Fullscreen 2 Font 32/SmallcapsGlow Map View 77x35 Zoom Use 0% Tactical HUD 1 Map Filters NONE Filters NONE Steam 1 RUN: 90758d55-e12a-41da-83fc-3b52fef75eeb